bitfinex/quotes_ETHUSD_20240821
["timestamp","ask_amount","ask_price","bid_price","bid_amount"]
[1724230525322,5.8172,2591.3,2590.9,1.00946]
[1724230525514,5.8172,2591.3,2590.9,0.7]
[1724230526577,1.676,2591.0,2590.9,0.7]
[1724230528880,1.676,2591.0,2590.9,0.81446843]
[1724230529701,2.2655,2591.6,2591.3,0.7]
[1724230530061,2.2655,2591.6,2591.4,0.11440303]
[1724230530582,1.676,2591.5,2591.4,0.11440303]
[1724230531781,1.676,2591.5,2591.3,0.7]
[1724230532584,1.676,2591.5,2591.4,0.11440303]
[1724230533863,1.676,2591.5,2591.3,0.7]
[1724230534574,2.435,2591.4,2591.0,0.7]
[1724230534758,1.676,2591.1,2591.0,0.7]
[1724230535661,1.676,2591.1,2591.0,3.1272]
[1724230535894,2.3967,2591.7,2591.3,0.7]
[1724230536984,1.676,2591.4,2591.3,0.7]
[1724230541491,1.676,2591.4,2591.3,1.25]
[1724230542306,1.676,2591.4,2591.0,0.7]
[1724230542544,2.479,2591.5,2591.0,0.7]
[1724230542751,2.7269,2591.5,2591.0,0.7]
[1724230545829,1.676,2591.1,2591.0,0.7]
[1724230546494,5.8172,2591.7,2591.0,0.7]
[1724230546695,3.0,2591.6,2591.0,0.7]
[1724230546996,1.676,2591.2,2591.0,0.7]
[1724230547556,1.676,2591.2,2591.0,1.01248]
[1724230548398,1.676,2591.2,2591.0,0.7]
[1724230552859,1.676,2591.2,2591.1,2.427]
[1724230553004,1.676,2591.2,2591.1,2.977]
[1724230553451,8.1508,2591.7,2591.3,0.7]
[1724230553969,1.676,2591.5,2591.3,0.7]
[1724230554355,1.676,2591.5,2591.3,1.0677]
[1724230555356,1.676,2591.5,2591.4,2.9215]
[1724230555760,1.676,2591.5,2591.4,3.03551105]
[1724230555960,1.676,2591.5,2591.4,0.66401105]
[1724230559725,1.676,2591.7,2591.6,0.7]
[1724230560262,1.676,2591.7,2591.6,0.81374017]
[1724230560496,1.676,2591.7,2591.6,1.18620419]
[1724230560912,1.676,2591.7,2591.6,1.73620419]
[1724230564602,1.676,2591.7,2591.6,0.81374017]
[1724230571111,4.0577,2591.7,2591.6,0.81374017]
[1724230572516,4.0577,2591.7,2591.6,0.11374017]
[1724230572835,4.0577,2591.7,2591.3,0.7]
[1724230573115,2.2704,2592.0,2591.3,0.7]
[1724230573317,2.2704,2592.0,2591.4,0.11296498]
[1724230573690,2.2704,2592.0,2591.6,0.7]
[1724230574312,1.676,2591.7,2591.6,0.7]
[1724230575712,1.676,2591.7,2591.6,0.81289025]
[1724230575908,1.676,2591.7,2591.6,1.12218928]
[1724230576326,4.0581,2591.7,2591.6,0.11289025]
[1724230576632,9.47843073,2591.7,2591.6,0.11289025]
[1724230576837,2.3136,2591.6,2591.0,0.7]
[1724230576983,2.3136,2591.4,2591.0,0.7]
[1724230577335,2.3136,2591.4,2591.1,0.1089164]
[1724230578529,1.676,2591.2,2591.1,0.1089164]
[1724230580688,4.1118,2591.2,2591.1,0.1089164]
[1724230580919,4.09377162,2591.2,2590.4,0.7]
[1724230581227,5.82073356,2591.4,2590.4,0.7]
[1724230581228,1.676,2590.5,2590.4,0.7]
[1724230581923,1.676,2590.5,2590.1,2.3459]
[1724230581924,1.676,2590.5,2590.1,0.7]
[1724230582126,1.676,2590.2,2590.1,0.7]
[1724230590950,1.676,2590.2,2590.1,0.81162144]
[1724230596566,6.9866,2590.2,2590.1,0.11162144]
[1724230596721,7.68526,2590.2,2590.1,0.11162144]
[1724230596919,6.00926,2590.2,2589.6,0.7]
[1724230597122,6.00926,2590.2,2590.1,0.11166811]
[1724230597319,6.00926,2590.2,2589.6,0.7]
[1724230597630,6.00926,2590.2,2590.1,0.11181745]
[1724230598188,7.68526,2590.2,2589.6,0.7]
[1724230598387,1.676,2589.7,2589.6,0.7]
[1724230598591,9.3356,2590.2,2589.6,1.00092]
[1724230598886,9.3356,2590.2,2589.6,0.7]
[1724230605861,9.3356,2590.2,2589.7,0.11203216]
[1724230608603,2.3879,2589.8,2589.7,0.11203216]
[1724230610355,4.025,2589.9,2589.7,0.11203216]
[1724230610522,9.2935,2590.2,2589.7,0.43625538]
[1724230612523,4.025,2590.2,2589.7,0.43625538]
[1724230612723,8.1095,2590.4,2589.9,3.195]
[1724230613326,5.8172,2590.4,2589.9,3.195]
[1724230614658,4.025,2590.5,2589.9,3.195]
[1724230618674,4.025,2590.5,2590.2,0.7]
[1724230618883,4.025,2590.5,2590.3,2.2692]
[1724230619210,15.19,2590.9,2590.3,2.2692]
[1724230619211,3.0,2590.9,2590.3,2.2692]
[1724230619492,2.2968,2591.0,2590.5,0.7]
[1724230619697,4.025,2590.8,2590.5,0.7]
[1724230620460,5.2968,2591.0,2590.5,0.7]
[1724230620461,1.676,2590.6,2590.5,0.7]
[1724230620705,1.676,2590.6,2590.5,0.81181744]
[1724230620921,1.676,2590.6,2590.5,0.7]
[1724230621120,3.9822,2590.6,2590.2,0.7]
[1724230621321,2.3062,2590.6,2590.5,0.11181744]
[1724230621646,2.53682,2590.6,2590.2,0.7]
[1724230621811,2.40943681,2591.0,2590.6,0.7]
[1724230622139,1.676,2591.0,2590.9,0.7]
[1724230622294,1.676,2591.0,2590.9,3.1711]
[1724230622696,1.676,2591.0,2590.9,3.28274012]
[1724230625018,1.676,2591.0,2590.9,3.61101413]
[1724230626350,1.676,2591.0,2590.9,0.81164012]
[1724230626646,5.42010432,2591.7,2590.9,3.0152]
[1724230626647,4.021,2591.4,2590.9,3.0152]
[1724230626941,4.84070432,2591.6,2590.9,3.0152]
[1724230626942,2.4206,2591.6,2590.9,3.0152]
[1724230627312,2.90467043,2591.6,2590.9,3.0152]
[1724230627520,3.0,2591.5,2590.9,3.0152]
[1724230632560,4.021,2591.6,2590.9,3.0152]
[1724230632859,4.021,2591.6,2591.2,0.7]
[1724230633059,4.021,2591.6,2591.2,3.0639]
[1724230633529,8.75947802,2591.8,2591.2,3.0639]
[1724230635034,2.94227802,2591.8,2591.2,3.0639]
[1724230635263,2.94227802,2591.8,2591.2,3.37029]
[1724230635465,2.94227802,2591.8,2591.3,0.11017527]
[1724230635750,2.3372,2591.8,2591.2,3.37029]
[1724230635958,2.3372,2591.8,2591.4,0.11017527]
[1724230636255,2.3372,2591.8,2591.2,3.37029]
[1724230637301,4.021,2591.6,2591.2,0.7]
[1724230637498,4.021,2591.6,2591.3,0.11017527]
[1724230637699,4.021,2591.6,2591.2,0.7]
[1724230637898,4.021,2591.6,2591.4,0.11017527]
[1724230638203,4.021,2591.6,2591.2,0.7]
[1724230638406,4.021,2591.6,2591.5,0.11017527]
[1724230638647,2.2554,2591.5,2591.2,0.7]
[1724230644721,4.021,2591.6,2591.2,0.7]
[1724230645552,4.021,2591.9,2591.2,0.7]
[1724230645959,3.0,2591.8,2591.3,2.471]
[1724230646259,3.0,2591.8,2591.4,0.3171]
[1724230646421,1.675,2591.5,2591.4,0.3171]
[1724230646762,1.675,2591.5,2591.4,0.42699545]
[1724230650464,0.60504453,2592.1,2591.5,0.7]
[1724230650756,1.675,2591.6,2591.5,0.7]
[1724230650991,1.675,2591.6,2591.5,1.01231954]
[1724230653697,1.675,2591.6,2591.5,1.12200051]
[1724230661356,1.675,2591.6,2591.5,0.80968097]
[1724230662708,1.675,2591.6,2591.5,0.7]
[1724230664357,1.675,2591.6,2591.5,0.80924269]
[1724230671429,2.42836088,2592.0,2591.5,0.80924269]
[1724230671767,1.675,2591.7,2591.5,0.80924269]
[1724230672317,1.675,2591.7,2591.5,1.12316696]
[1724230676938,1.675,2591.7,2591.6,0.55]
[1724230677122,1.675,2591.7,2591.6,2.8142]
[1724230677524,1.675,2591.7,2591.6,2.92306047]
[1724230678153,1.675,2591.9,2591.8,0.7]
[1724230678622,1.675,2591.9,2591.8,0.80851557]
[1724230678969,1.675,2591.9,2591.8,1.17078713]
[1724230681293,1.675,2591.9,2591.8,0.80851557]
[1724230683885,3.9288,2591.9,2591.8,0.80851557]
[1724230684082,6.35740218,2591.9,2591.8,0.80851557]
[1724230684385,6.35555188,2591.9,2591.8,0.7]
[1724230685298,6.35585249,2591.9,2591.8,0.7]
[1724230685666,2.4058,2591.8,2591.1,0.7]
[1724230685869,2.42705249,2591.6,2591.1,0.7]
[1724230686108,2.4058,2591.5,2591.2,0.10845032]
[1724230686997,1.675,2591.3,2591.1,0.7]
[1724230694096,2.4897,2591.2,2590.8,0.7]
[1724230694281,4.1647,2590.9,2590.8,0.7]
[1724230697384,4.1647,2590.9,2589.6,2.82193388]
[1724230697385,2.2656,2590.8,2590.5,0.7]
[1724230697585,2.2656,2590.8,2589.7,2.4353]
[1724230697586,1.675,2590.5,2590.1,0.7]
[1724230697784,4.69219225,2590.7,2590.6,0.10657253]
[1724230698094,5.73481922,2590.7,2590.1,0.7]
[1724230698279,3.0,2590.6,2590.1,0.7]
[1724230698482,3.0,2590.6,2590.2,0.10657253]
[1724230698720,3.0,2590.6,2590.1,0.7]
[1724230698987,1.675,2590.2,2590.1,0.7]
[1724230709724,3.0,2590.6,2590.1,0.7]
[1724230710046,1.675,2590.2,2590.1,0.7]
[1724230710744,1.675,2590.2,2590.1,0.80657253]
[1724230710948,1.675,2590.2,2590.1,0.7]
[1724230715855,4.0585,2590.2,2590.1,0.7]
[1724230716058,4.46435,2590.2,2590.1,0.7]
[1724230716209,4.46435,2590.2,2590.1,0.80716877]
[1724230716565,4.0585,2590.2,2590.1,0.80716877]
[1724230719571,2.3835,2590.2,2590.1,0.80716877]
[1724230719741,2.4925,2590.7,2590.1,0.80716877]
[1724230720930,1.675,2590.2,2590.1,0.80716877]
[1724230732582,4.1639,2590.2,2590.1,0.10716877]
[1724230732898,4.1639,2590.2,2589.8,0.7]
[1724230732899,4.58029,2590.2,2589.8,0.7]
[1724230733241,2.4889,2590.2,2590.1,0.10590421]
[1724230733394,2.4889,2590.2,2589.5,0.7]
[1724230733727,2.4889,2590.2,2589.6,0.10590421]
[1724230733925,1.675,2589.7,2589.6,0.10590421]
[1724230743618,1.675,2589.7,2589.6,0.00590421]
[1724230743979,1.675,2589.7,2589.6,0.10291545]
[1724230747161,1.675,2589.7,2589.6,0.00291545]
[1724230747456,1.675,2589.7,2589.6,0.09958211]
[1724230758075,3.9953,2589.7,2589.6,0.09958211]
[1724230758272,4.39483,2589.7,2589.6,0.09958211]
[1724230759277,3.9953,2589.7,2589.6,0.09958211]
[1724230759477,2.3203,2589.7,2589.6,0.09958211]
[1724230760592,3.9953,2589.7,2589.6,0.09958211]
[1724230763554,1.675,2589.7,2589.6,0.09958211]
[1724230771143,4.0875,2589.7,2589.6,0.09958211]
[1724230771771,4.49625,2589.7,2589.6,0.09958211]
[1724230773768,2.3927,2589.6,2588.9,0.7]
[1724230773936,3.9911,2589.0,2588.9,0.7]
[1724230774340,3.9911,2589.0,2588.9,0.10030855]
[1724230774723,3.9911,2589.0,2588.6,0.7]
[1724230774920,1.675,2588.7,2588.6,0.7]
[1724230780943,2.3161,2589.0,2588.6,0.7]
[1724230781198,1.675,2588.7,2588.6,0.7]
[1724230784585,2.3161,2589.0,2588.6,0.7]
[1724230784973,2.41918191,2589.6,2588.6,0.7]
[1724230784974,2.3779,2589.2,2588.6,0.7]
[1724230785154,2.3779,2589.2,2588.6,1.01204]
[1724230785814,2.3779,2589.2,2588.7,0.10193923]
[1724230785959,1.675,2588.8,2588.7,0.10193923]
[1724230787561,1.675,2588.8,2588.6,0.7]
[1724230787562,2.4723,2588.7,2587.5,0.80886465]
[1724230787868,2.4723,2588.7,2587.4,1.21329697]
[1724230787869,1.675,2588.8,2587.3,0.7]
[1724230787870,4.1473,2588.2,2587.3,0.7]
[1724230788294,7.1473,2588.2,2587.3,0.7]
[1724230789469,7.1473,2588.2,2587.6,0.7]
[1724230789470,5.4723,2588.2,2587.6,0.7]
[1724230789672,1.675,2588.3,2588.2,0.7]
[1724230790639,0.6056,2588.5,2588.2,0.7]
[1724230793370,4.03,2588.7,2588.2,0.7]
[1724230795001,4.66614,2588.7,2588.2,0.7]
[1724230795205,4.66614,2588.7,2588.3,0.08839737]
[1724230795499,4.66614,2588.7,2588.2,0.7]
[1724230795697,4.66614,2588.7,2588.4,0.08839737]
[1724230795912,4.66614,2588.7,2588.2,0.7]
[1724230796085,4.66614,2588.7,2588.5,0.08839737]
[1724230796288,4.66614,2588.7,2588.2,0.7]
[1724230796599,4.03,2589.3,2588.8,0.7]
[1724230797108,4.03,2589.3,2588.9,0.08839737]
[1724230797907,4.03,2589.0,2588.4,8.11]
[1724230798566,2.2816,2588.9,2588.4,8.11]
[1724230799468,4.03,2588.7,2588.4,8.11]
[1724230799678,4.03,2588.7,2588.4,0.7]
[1724230800716,4.03,2588.7,2588.1,0.8238664]
[1724230800929,4.66116,2588.7,2588.2,0.55]
[1724230801420,0.63116,2588.7,2588.4,0.7]
[1724230801564,2.2816,2588.9,2588.4,0.7]
[1724230801768,5.2816,2588.9,2588.4,0.7]
[1724230802364,4.03,2589.0,2588.4,0.7]
[1724230802817,4.65876689,2589.0,2588.4,0.7]
[1724230803166,5.3448,2589.2,2588.3,2.2807]
[1724230803167,5.3448,2589.2,2588.7,0.7]
[1724230803427,5.8172,2589.4,2588.7,0.7]
[1724230803428,5.8172,2589.4,2588.8,2.8307]
[1724230803588,2.3448,2589.5,2588.8,2.8307]
[1724230804130,2.3448,2589.5,2589.0,0.7]
[1724230804268,3.023155,2589.5,2589.0,0.7]
[1724230804626,4.03,2589.3,2589.0,0.7]
[1724230807788,4.03,2589.3,2588.6,0.7]
[1724230807995,2.3846,2589.2,2588.6,0.7]
[1724230808304,0.23846,2589.1,2588.6,0.7]
[1724230808532,3.23846,2589.1,2588.6,0.7]
[1724230809293,4.03,2588.9,2588.6,0.7]
[1724230809896,4.03,2588.9,2588.6,2.626]
[1724230810690,3.0,2589.1,2588.6,2.626]
[1724230810899,0.4015028,2589.5,2588.9,0.7]
[1724230810900,2.2691,2589.5,2588.9,0.7]
[1724230812191,4.03,2589.6,2588.9,0.7]
[1724230816695,4.03,2589.6,2589.0,2.3112]
[1724230817829,4.03,2589.6,2589.1,0.0889187]
[1724230818031,4.03,2589.6,2589.0,2.3112]
[1724230818208,4.03,2589.6,2589.2,0.08837881]
[1724230818415,4.03,2589.6,2589.0,2.3112]
[1724230818648,4.03,2589.6,2589.3,0.08830436]
[1724230818950,4.03,2589.6,2589.0,2.3112]
[1724230819105,4.03,2589.6,2589.0,2.61232]
[1724230819302,4.03,2589.6,2589.1,0.08830436]
[1724230819951,4.03,2589.6,2589.2,0.7]
[1724230820446,4.03,2589.6,2589.3,0.08769933]
[1724230821048,4.03,2589.6,2589.2,0.7]
[1724230821566,4.03,2589.6,2589.3,0.08771794]
[1724230821903,4.03,2589.6,2589.2,0.7]
[1724230822149,8.24171528,2590.0,2589.2,1.031232]
[1724230822150,4.03,2589.9,2589.2,1.031232]
[1724230822334,5.8172,2590.4,2589.5,2.9615]
[1724230822335,6.45451528,2590.2,2589.5,2.9615]
[1724230822543,4.03,2590.2,2589.5,2.9615]
[1724230822852,4.03,2590.2,2589.6,0.08767141]
[1724230823031,0.403,2590.1,2589.6,0.08767141]
[1724230824465,4.03,2590.2,2589.6,0.08767141]
[1724230824603,3.0,2590.5,2589.8,0.7]
[1724230824604,7.03,2590.5,2589.8,0.7]
[1724230824805,4.03,2590.5,2589.8,0.7]
[1724230826461,4.03,2590.2,2589.8,0.7]
[1724230826821,4.03,2590.2,2589.9,0.08767141]
[1724230827167,4.03,2590.2,2589.8,0.7]
[1724230827352,2.3912,2590.1,2589.8,0.7]
[1724230827506,2.3912,2590.1,2589.9,0.08767141]
[1724230827706,4.26912,2590.0,2589.9,0.08767141]
[1724230828023,4.26912,2590.0,2589.8,0.7]
[1724230828351,4.03,2590.0,2589.8,0.7]
[1724230828536,4.03,2590.0,2589.9,0.08767141]
[1724230829052,4.03,2590.0,2589.8,0.7]
[1724230829356,4.03,2590.0,2589.9,0.08767141]
[1724230829657,4.03,2590.3,2589.9,0.08767141]
[1724230829961,4.35082,2590.3,2589.8,0.7]
[1724230830304,4.35082,2590.3,2589.9,0.08767141]
[1724230830714,4.35082,2590.3,2589.8,0.7]
[1724230831109,4.35082,2590.3,2589.9,0.08711321]
[1724230831509,4.35082,2590.3,2589.8,0.7]
[1724230831912,4.35082,2590.3,2589.9,0.08659222]
[1724230832319,4.35082,2590.3,2589.8,0.7]
[1724230832866,4.35082,2590.3,2589.9,0.08659222]
[1724230833157,0.674202,2590.2,2589.8,0.7]
[1724230833512,0.674202,2590.2,2589.9,0.08657362]
[1724230833913,0.674202,2590.2,2589.8,0.7]
[1724230834314,0.674202,2590.2,2589.9,0.08657362]
[1724230834628,0.674202,2590.2,2589.8,0.7]
[1724230834832,4.35082,2590.3,2590.0,0.08657362]
[1724230835033,4.35082,2590.3,2589.8,0.7]
[1724230835415,4.35082,2590.3,2589.9,0.08657362]
[1724230835820,4.35082,2590.3,2589.8,0.7]
[1724230836263,4.35082,2590.3,2589.9,0.08653562]
[1724230836464,4.35082,2590.3,2589.8,0.7]
[1724230836757,4.35082,2590.3,2590.0,0.08653562]
[1724230836969,0.674202,2590.2,2589.8,0.7]
[1724230837175,0.817,2590.5,2589.8,0.7]
[1724230837323,12.1212,2590.7,2589.9,2.41763562]
[1724230837652,12.1212,2590.7,2589.9,2.3311]
[1724230838011,4.03,2590.4,2589.9,2.3311]
[1724230838257,4.433,2590.4,2589.9,2.3311]
[1724230838575,4.03,2590.4,2589.9,2.3311]
[1724230839983,12.1212,2590.7,2589.9,2.3311]
[1724230840320,12.1212,2590.7,2590.1,0.7]
[1724230840521,6.304,2590.7,2590.1,0.7]
[1724230841023,6.304,2590.7,2590.2,0.08653562]
[1724230841225,4.03,2590.7,2590.3,2.2738]
[1724230841780,4.03,2590.7,2590.4,0.08653562]
[1724230841918,4.03,2590.7,2590.3,2.2738]
[1724230842114,4.03,2590.7,2590.5,0.08621012]
[1724230842441,4.03,2590.7,2590.6,0.08621012]
[1724230842840,4.03,2590.7,2590.3,2.2738]
[1724230843572,4.03,2591.0,2590.3,2.57118]
[1724230844241,4.03,2591.0,2590.3,2.2738]
[1724230844996,4.03,2591.0,2590.5,0.7]
[1724230845506,4.03,2591.0,2590.6,0.08621012]
[1724230847345,4.03,2590.7,2590.6,0.08621012]
[1724230847547,6.9092,2590.7,2590.6,0.08621012]
[1724230847745,6.9092,2590.7,2590.1,7.41]
[1724230848248,6.9092,2590.7,2590.2,0.08621012]
[1724230848961,4.03,2590.4,2590.2,0.08621012]
[1724230849843,4.03,2590.4,2590.0,2.3218]
[1724230850044,4.03,2590.4,2590.3,0.08621012]
[1724230850245,4.03,2590.4,2589.9,0.7]
[1724230850246,4.433,2590.4,2589.9,0.7]
[1724230850489,6.8983,2590.4,2590.3,0.08621012]
[1724230850705,6.8983,2590.4,2589.7,2.3015]
[1724230851305,6.8983,2590.4,2589.8,0.08621012]
[1724230851480,0.68983,2590.3,2589.8,0.08621012]
[1724230851801,4.03,2590.1,2589.7,2.3015]
[1724230852004,4.03,2590.1,2589.6,0.7]
[1724230852297,4.03,2590.1,2589.7,0.08633098]
[1724230853098,6.4953,2590.4,2589.9,3.0726]
[1724230853264,4.03,2590.4,2589.9,3.3884931]
[1724230853460,4.03,2590.4,2589.9,3.0726]
[1724230854050,5.8172,2590.6,2589.9,3.0726]
[1724230855596,6.8356,2590.7,2589.9,3.0726]
[1724230856010,6.8356,2590.7,2590.0,0.08601478]
[1724230856174,0.68356,2590.6,2590.0,0.08601478]
[1724230857267,4.03,2590.4,2590.0,0.08601478]
[1724230857477,2.34,2590.3,2589.6,10.59]
[1724230857687,2.34,2590.3,2590.1,0.08600548]
[1724230857867,2.34,2590.3,2589.6,10.59]
[1724230858075,2.34,2590.3,2590.2,0.08600548]
[1724230858419,2.977,2590.3,2590.2,0.08600548]
[1724230858731,2.977,2590.3,2589.6,10.59]
[1724230859005,2.977,2590.3,2590.2,0.08600548]
[1724230859575,2.977,2590.3,2589.6,10.59]
[1724230859974,2.977,2590.3,2589.7,0.08600548]
[1724230861502,0.7007,2590.2,2589.7,0.08600548]
[1724230862300,2.34,2590.3,2589.7,0.08600548]
[1724230863382,4.03,2590.4,2589.7,0.08600548]
[1724230865730,6.4558229,2590.4,2589.7,0.08600548]
[1724230866124,6.45790243,2590.4,2589.7,0.08600548]
[1724230870637,6.45951213,2590.4,2589.7,0.08600548]
[1724230871137,6.45951213,2590.4,2589.8,2.459]
[1724230871737,4.03,2590.4,2589.8,2.459]
[1724230872124,2.42951213,2590.5,2590.0,2.494]
[1724230872328,8.24671213,2590.6,2590.0,2.494]
[1724230872903,2.42951213,2590.5,2590.0,2.494]
[1724230873859,2.42951213,2590.6,2590.1,0.08594968]
[1724230874077,3.11595521,2590.6,2590.1,0.08594968]
[1724230875075,2.42951213,2590.5,2590.1,0.08594968]
[1724230875566,2.429455,2590.6,2590.2,2.2822]
[1724230875765,6.459455,2590.7,2590.2,2.2822]
[1724230875911,6.459455,2590.7,2590.3,0.7]
[1724230875912,4.03,2590.7,2590.3,0.7]
[1724230876113,4.03,2590.7,2590.3,0.78594968]
[1724230877254,4.9759455,2590.7,2590.3,0.78594968]
[1724230877463,4.9759455,2590.7,2590.3,0.7]
[1724230878281,4.03,2590.7,2590.3,0.7]
[1724230879793,2.42917515,2590.8,2590.4,2.4381]
[1724230879948,6.86403767,2591.0,2590.4,2.4381]
[1724230879949,2.42887668,2590.9,2590.4,2.4381]
[1724230880310,2.42887668,2590.9,2590.5,0.08577302]
[1724230880595,2.42887668,2591.0,2590.5,0.08577302]
[1724230880947,1.676,2590.6,2590.5,2.67256032]
[1724230882307,1.676,2590.6,2590.5,2.35017302]
[1724230882526,2.3814,2590.9,2590.5,0.08577302]
[1724230882823,2.3814,2590.9,2590.3,0.7]
[1724230882824,4.81027668,2590.9,2590.3,0.7]
[1724230882987,4.81027668,2590.9,2590.4,0.08544762]
[1724230883674,4.80965739,2590.9,2590.4,0.08544762]
[1724230884777,4.80965704,2590.9,2590.4,0.08544762]
[1724230885592,2.42825704,2590.8,2590.4,0.08544762]
[1724230885797,4.024,2590.7,2590.4,0.08544762]
[1724230888136,3.974,2590.7,2590.4,0.08544762]
[1724230892741,6.3774,2590.7,2590.4,0.08544762]
[1724230895914,3.974,2590.7,2590.4,0.08544762]
[1724230896684,3.974,2590.7,2590.4,0.40361238]
[1724230896880,2.42878428,2590.9,2590.4,0.40361238]
[1724230897918,8.85178428,2591.0,2590.4,0.40361238]
[1724230898303,2.42878428,2590.9,2590.4,0.40361238]
[1724230900643,4.024,2590.7,2590.4,0.08544762]
[1724230901301,6.45278428,2590.7,2590.4,0.08544762]
[1724230901744,2.4287,2590.6,2590.4,0.08544762]
[1724230901905,4.024,2589.8,2589.2,3.1724]
[1724230902107,4.66927,2589.8,2589.2,3.1724]
[1724230902314,4.024,2589.8,2589.2,3.1724]
[1724230902838,4.024,2589.5,2589.0,9.8824]
[1724230903050,4.024,2589.5,2589.0,2.4724]
[1724230903196,6.4527,2589.5,2588.9,0.7]
[1724230905528,4.024,2589.2,2588.6,5.0984]
[1724230905694,4.024,2589.2,2588.6,2.626]
[1724230906462,2.471,2589.3,2588.6,2.626]
[1724230906665,4.024,2588.7,2588.6,1.926]
[1724230908632,7.024,2588.7,2588.6,1.926]
[1724230910452,9.2741,2588.7,2588.6,1.926]
[1724230912953,9.2741,2588.7,2588.1,0.1238664]
[1724230913170,6.2915,2588.2,2588.1,0.1238664]
[1724230914345,9.2915,2588.2,2588.1,0.1238664]
[1724230916462,6.2915,2588.2,2588.1,0.1238664]
[1724230923329,4.024,2588.2,2587.1,2.3558]
[1724230923526,4.024,2587.5,2587.1,2.3558]
[1724230923672,4.024,2587.5,2587.2,0.0750633]
[1724230926074,4.4264,2587.5,2587.2,0.0750633]
[1724230926268,6.7616,2587.5,2586.6,0.7]
[1724230926486,4.024,2587.0,2586.7,0.0750633]
[1724230927026,4.024,2587.0,2586.5,2.3923]
[1724230927241,4.024,2587.0,2586.8,0.0750633]
[1724230927386,4.024,2587.0,2586.3,0.7]
[1724230927387,4.4264,2587.0,2586.3,3.109]
[1724230927852,4.4264,2587.0,2586.4,0.0750633]
[1724230929290,2.3658,2586.9,2586.4,0.0750633]
[1724230929692,2.3658,2586.9,2585.5,0.1238664]
[1724230929897,2.3658,2586.7,2586.5,0.0735046]
[1724230930128,2.3658,2586.5,2585.5,0.1238664]
[1724230930352,4.024,2586.2,2585.5,0.1238664]
[1724230930508,4.024,2586.2,2585.6,0.068549]
[1724230930694,4.024,2586.2,2585.5,0.1238664]
[1724230930695,4.024,2585.9,2585.5,0.1238664]
[1724230930898,4.024,2585.9,2585.7,0.068549]
[1724230931224,4.024,2585.9,2585.5,0.1238664]
[1724230931225,4.66298,2585.9,2585.5,0.1238664]
[1724230931428,4.66298,2585.9,2585.8,0.068549]
[1724230931597,4.66298,2585.9,2585.5,0.1238664]
[1724230931936,4.66298,2585.9,2585.6,0.068549]
[1724230932153,4.024,2585.9,2585.6,0.068549]
[1724230932312,4.024,2586.2,2585.6,0.068549]
[1724230933241,4.024,2585.8,2585.6,0.068549]
[1724230935349,6.2757,2585.8,2585.6,0.068549]
[1724230935556,0.62757,2585.7,2585.6,0.068549]
[1724230935717,0.62757,2585.7,2585.5,0.1238664]
[1724230935923,4.65157,2585.7,2584.9,0.7]
[1724230936253,0.62757,2585.7,2585.6,0.06566789]
[1724230936456,0.62757,2585.7,2584.9,0.7]
[1724230936762,4.024,2585.0,2584.9,1.00162]
[1724230937818,4.024,2585.0,2584.9,1.06728789]
[1724230938542,4.024,2585.0,2584.9,0.76566789]
[1724230945884,4.024,2585.0,2584.9,0.7]
[1724230946685,4.024,2585.0,2584.9,0.76566789]
[1724230946983,2.3983,2585.8,2585.2,0.7]
[1724230947146,4.024,2585.4,2585.2,2.9794]
[1724230947492,4.024,2585.4,2585.3,0.06716034]
[1724230951152,4.024,2585.4,2584.9,3.0259]
[1724230951341,4.024,2585.4,2585.3,0.06716034]
[1724230951536,4.024,2585.4,2584.9,3.0259]
[1724230951860,2.476,2585.6,2584.9,0.7]
[1724230952184,4.024,2585.1,2585.0,0.06716034]
[1724230953220,4.024,2585.4,2585.0,0.06716034]
[1724230954062,4.024,2585.4,2585.1,2.4283]
[1724230954590,4.024,2585.4,2585.2,0.06716034]
[1724230954907,4.024,2585.4,2585.1,2.4283]
[1724230955315,4.024,2585.4,2585.2,0.06716034]
[1724230955698,4.024,2585.4,2585.2,0.7]
[1724230955903,4.024,2585.4,2585.3,0.06716034]
[1724230956087,5.8172,2585.8,2585.3,0.06716034]
[1724230956422,2.3691,2585.6,2584.6,0.7]
[1724230956673,2.3691,2585.6,2584.4,4.02]
[1724230956674,2.3691,2585.5,2584.4,4.02]
[1724230956811,4.024,2584.8,2584.7,0.06492166]
[1724230957143,4.024,2584.8,2584.7,0.06273897]
[1724230957480,4.024,2584.8,2584.4,4.02]
[1724230957723,4.024,2584.8,2584.5,0.06273897]
[1724230957938,3.0,2585.6,2584.6,0.7]
[1724230957939,4.024,2585.1,2584.6,0.7]
[1724230958126,4.024,2584.8,2584.6,0.7]
[1724230958330,4.024,2584.8,2584.7,0.06326157]
[1724230958686,4.024,2584.8,2584.4,0.1]
[1724230958912,4.024,2584.8,2584.5,0.06353226]
[1724230959131,4.024,2584.8,2584.6,0.7]
[1724230959311,4.024,2585.1,2584.6,0.7]